bitfinex/quotes_BTCUSD_20240918
["timestamp","ask_amount","ask_price","bid_price","bid_amount"]
[1726674854735,0.03619517,59587.0,59583.0,0.05035631]
[1726674854943,0.03619517,59586.0,59583.0,0.05035631]
[1726674855152,0.000821,59588.0,59584.0,0.16783]
[1726674855153,0.03619517,59585.0,59584.0,0.16783]
[1726674855639,0.335649,59586.0,59583.0,0.05035631]
[1726674855854,0.04036881,59585.0,59581.0,0.167837]
[1726674856074,0.002,59587.0,59585.0,0.167826]
[1726674856285,0.002,59587.0,59586.0,0.167824]
[1726674856504,0.002,59587.0,59579.0,0.15106893]
[1726674856505,0.0972,59586.0,59579.0,0.15106893]
[1726674856720,0.0972,59586.0,59576.0,0.05035631]
[1726674856721,0.335689,59579.0,59576.0,0.05035631]
[1726674856953,0.335684,59580.0,59573.0,0.10071262]
[1726674856954,0.04037455,59578.0,59573.0,0.38607831]
[1726674857195,0.03617823,59577.0,59574.0,0.21821431]
[1726674857407,0.03617823,59576.0,59575.0,0.167855]
[1726674857836,0.03617823,59576.0,59575.0,0.503566]
[1726674858057,0.03617823,59576.0,59575.0,0.167855]
[1726674858278,0.03617823,59576.0,59575.0,0.503566]
[1726674858496,0.00419652,59579.0,59576.0,0.167852]
[1726674858725,0.00419652,59579.0,59571.0,0.20627108]
[1726674858726,0.167857,59575.0,59571.0,0.167866]
[1726674858938,0.167867,59571.0,59567.0,0.167876]
[1726674859156,0.01817325,59570.0,59567.0,0.167876]
[1726674859376,0.01817325,59569.0,59567.0,0.167876]
[1726674859595,0.0359972,59568.0,59565.0,0.1]
[1726674859782,0.008039,59568.0,59567.0,0.167878]
[1726674860034,0.04394899,59568.0,59567.0,0.167878]
[1726674860265,0.04394899,59568.0,59567.0,0.503634]
[1726674860479,0.03590999,59568.0,59567.0,0.83939]
[1726674860724,0.03590999,59568.0,59567.0,0.503634]
[1726674860976,0.03590999,59568.0,59567.0,0.167878]
[1726674861447,0.03590999,59568.0,59567.0,0.503634]
[1726674861652,0.04397396,59568.0,59567.0,0.503634]
[1726674861884,0.03593496,59568.0,59567.0,0.503634]
[1726674862118,0.03793496,59568.0,59567.0,0.503634]
[1726674862343,0.04583469,59568.0,59567.0,0.503634]
[1726674862586,0.04583469,59568.0,59567.0,0.167878]
[1726674863326,0.04583469,59568.0,59567.0,0.503634]
[1726674863625,0.03793496,59568.0,59567.0,0.503634]
[1726674864040,0.04583469,59568.0,59567.0,0.503634]
[1726674864724,0.00989973,59568.0,59567.0,0.503634]
[1726674864948,0.02805063,59568.0,59567.0,0.503634]
[1726674865173,0.04588893,59568.0,59567.0,0.503634]
[1726674865608,0.04588893,59568.0,59567.0,0.83939]
[1726674865837,0.0359892,59568.0,59567.0,0.83939]
[1726674866277,0.03700237,59568.0,59567.0,0.83939]
[1726674866494,0.0188383,59568.0,59567.0,0.83939]
[1726674866941,0.335693,59579.0,59573.0,0.167859]
[1726674867193,0.167851,59577.0,59570.0,0.167869]
[1726674867445,0.03604813,59576.0,59567.0,0.49167077]
[1726674867674,0.429255,59589.0,59578.0,0.167844]
[1726674867897,0.00789973,59576.0,59575.0,0.65948077]
[1726674868121,0.03615691,59583.0,59579.0,0.167843]
[1726674868338,0.167832,59584.0,59579.0,0.167843]
[1726674868556,0.02604339,59582.0,59579.0,0.167843]
[1726674868785,0.01826866,59581.0,59579.0,0.167843]
[1726674869003,0.03615525,59580.0,59577.0,0.335696]
[1726674869225,0.00777473,59580.0,59579.0,0.167844]
[1726674869440,0.0256665,59580.0,59579.0,0.167844]
[1726674869662,0.04392734,59580.0,59577.0,0.503543]
[1726674869875,0.03615261,59579.0,59577.0,0.167848]
[1726674870093,0.03615261,59578.0,59577.0,0.167848]
[1726674870314,0.04392734,59578.0,59577.0,0.167848]
[1726674871217,0.00777473,59578.0,59577.0,0.167848]
[1726674871433,0.02567076,59578.0,59576.0,0.167851]
[1726674871644,0.03614848,59577.0,59576.0,0.167852]
[1726674872084,0.04392321,59577.0,59576.0,0.167852]
[1726674872726,0.04392321,59577.0,59564.0,0.123]
[1726674872943,0.03614848,59576.0,59574.0,0.167857]
[1726674873165,0.03614848,59575.0,59574.0,0.167857]
[1726674873381,0.04396058,59575.0,59574.0,0.167857]
[1726674874119,0.21181658,59575.0,59572.0,0.167863]
[1726674874565,0.01789603,59574.0,59572.0,0.167863]
[1726674874797,0.01789603,59574.0,59573.0,0.503583]
[1726674874798,0.03609474,59574.0,59573.0,0.503583]
[1726674875042,0.01,59577.0,59576.0,0.503557]
[1726674875233,0.01,59577.0,59576.0,1.33088177]
[1726674875445,0.01,59577.0,59576.0,0.15591477]
[1726674875446,0.03601685,59577.0,59576.0,0.15591477]
[1726674875649,0.258949,59585.0,59581.0,0.167837]
[1726674875880,0.03598102,59584.0,59581.0,0.167837]
[1726674876090,0.03598102,59583.0,59581.0,0.167837]
[1726674876321,0.03598102,59582.0,59581.0,0.167837]
[1726674876540,0.03598102,59582.0,59575.0,0.335708]
[1726674876764,0.20382002,59581.0,59577.0,0.503548]
[1726674876979,0.03598102,59580.0,59578.0,0.167845]
[1726674877196,0.03598102,59579.0,59578.0,0.167845]
[1726674878070,0.01818671,59579.0,59578.0,0.167845]
[1726674878286,0.03602798,59579.0,59578.0,0.167845]
[1726674878503,0.03602798,59579.0,59578.0,0.503539]
[1726674879203,0.04302798,59579.0,59578.0,0.503539]
[1726674879636,0.04502798,59579.0,59578.0,0.167845]
[1726674879831,0.04502798,59579.0,59578.0,0.503539]
[1726674880066,0.05286771,59579.0,59578.0,0.503539]
[1726674881119,0.05286771,59579.0,59576.0,0.16785]
[1726674881345,0.03602798,59578.0,59575.0,0.335709]
[1726674881561,0.01683973,59579.0,59571.0,0.49164677]
[1726674881562,0.01683973,59579.0,59571.0,0.335732]
[1726674881784,0.01683973,59579.0,59574.0,0.167856]
[1726674881785,0.16785,59577.0,59574.0,0.167856]
[1726674882010,0.01815004,59576.0,59575.0,0.167855]
[1726674882222,0.03595541,59576.0,59575.0,0.167855]
[1726674882422,0.04379514,59576.0,59575.0,0.167855]
[1726674882652,0.04379514,59576.0,59574.0,0.167857]
[1726674882859,0.00783973,59576.0,59575.0,0.167855]
[1726674883086,0.03592756,59576.0,59571.0,0.335731]
[1726674883340,0.03592756,59575.0,59574.0,0.167856]
[1726674883550,0.03592756,59575.0,59574.0,0.503572]
[1726674883780,0.03592756,59575.0,59574.0,0.167856]
[1726674883988,0.04376729,59575.0,59574.0,0.167856]
[1726674884204,0.04376729,59575.0,59564.0,0.01014589]
[1726674884421,0.04012456,59574.0,59568.0,0.33575]
[1726674884634,0.03592756,59573.0,59566.0,0.33576]
[1726674884842,0.339918,59574.0,59566.0,0.33576]
[1726674884843,0.172061,59572.0,59569.0,0.167871]
[1726674885062,0.20799359,59572.0,59569.0,0.167871]
[1726674885269,0.03593259,59571.0,59569.0,0.167871]
[1726674885476,0.03593259,59570.0,59569.0,0.167871]
[1726674885904,0.04374695,59570.0,59569.0,0.167871]
[1726674886115,0.33575,59568.0,59563.0,0.001642]
[1726674886433,0.04012992,59567.0,59563.0,0.001642]
[1726674886616,0.258186,59564.0,59563.0,0.001642]
[1726674886829,0.63408923,59564.0,59563.0,0.001642]
[1726674887052,1.14065167,59564.0,59563.0,0.001642]
[1726674887269,1.47642467,59564.0,59563.0,0.001642]
[1726674887475,1.14065167,59564.0,59563.0,0.001642]
[1726674887728,1.13645403,59564.0,59563.0,0.001642]
[1726674887977,1.10052144,59564.0,59563.0,0.001642]
[1726674888448,1.13676116,59564.0,59563.0,0.001642]
[1726674888667,1.14776116,59564.0,59563.0,0.001642]
[1726674891159,1.12980933,59564.0,59563.0,0.001642]
[1726674891373,1.17410299,59564.0,59563.0,0.001642]
[1726674891589,1.14776465,59564.0,59563.0,0.001642]
[1726674892257,1.14771323,59564.0,59563.0,0.001642]
[1726674894471,1.13671323,59564.0,59563.0,0.001642]
[1726674894684,1.47248623,59564.0,59563.0,0.001642]
[1726674894899,1.48548623,59564.0,59563.0,0.001642]
[1726674895576,1.47248623,59564.0,59563.0,0.001642]
[1726674896031,1.48648623,59564.0,59563.0,0.001642]
[1726674896265,1.47248623,59564.0,59563.0,0.001642]
[1726674897116,1.630401,59564.0,59563.0,0.001642]
[1726674897347,2.044474,59564.0,59563.0,0.001642]
[1726674897608,2.074474,59564.0,59563.0,0.001642]
[1726674897867,2.09952795,59564.0,59563.0,0.001642]
[1726674898119,2.08552795,59564.0,59563.0,0.001642]
[1726674898361,2.11737988,59564.0,59563.0,0.001642]
[1726674898595,2.28027988,59564.0,59563.0,0.001642]
[1726674898826,2.10337988,59564.0,59563.0,0.001642]
[1726674899074,2.11737988,59564.0,59563.0,0.001642]
[1726674899577,1.62369211,59564.0,59563.0,0.001642]
[1726674899814,1.57644637,59564.0,59563.0,0.001642]
[1726674900061,1.62342312,59564.0,59563.0,0.001642]
[1726674900716,1.57350968,59564.0,59563.0,0.001642]
[1726674900923,1.58046077,59564.0,59563.0,0.001642]
[1726674901130,1.59446077,59564.0,59563.0,0.001642]
[1726674901340,2.07414854,59564.0,59563.0,0.001642]
[1726674901553,2.08814854,59564.0,59563.0,0.001642]
[1726674902182,2.09441277,59564.0,59563.0,0.001642]
[1726674902604,2.06641277,59564.0,59563.0,0.001642]
[1726674903234,2.06441277,59564.0,59563.0,0.001642]
[1726674903444,2.06427877,59564.0,59563.0,0.001642]
[1726674903859,2.08027877,59564.0,59563.0,0.001642]
[1726674904067,2.07827877,59564.0,59563.0,0.001642]
[1726674905351,2.06427877,59564.0,59563.0,0.001642]
[1726674905580,2.07827877,59564.0,59563.0,0.001642]
[1726674905813,2.08027877,59564.0,59563.0,0.001642]
[1726674906304,1.205401,59554.0,59553.0,0.00164]
[1726674906538,1.36845467,59554.0,59553.0,0.00164]
[1726674906761,1.40412657,59554.0,59553.0,0.00164]
[1726674906988,0.19872557,59554.0,59553.0,0.00164]
[1726674907487,0.0356719,59554.0,59553.0,0.00164]
[1726674907701,0.014,59554.0,59553.0,0.337475]
[1726674907939,0.01767909,59554.0,59553.0,0.505392]
[1726674908188,0.000821,59565.0,59562.0,0.16789]
[1726674908422,0.000821,59565.0,59564.0,0.65957377]
[1726674908645,0.000821,59565.0,59560.0,0.15591477]
[1726674908869,0.01787314,59564.0,59563.0,0.001642]
[1726674909093,0.20424915,59564.0,59563.0,0.001642]
[1726674909566,0.54002215,59564.0,59563.0,0.001642]
[1726674909788,0.53993002,59564.0,59563.0,0.001642]
[1726674910015,1.03875669,59564.0,59563.0,0.001642]
[1726674910464,1.37452969,59564.0,59563.0,0.001642]
[1726674911140,1.03875669,59564.0,59563.0,0.001642]
[1726674911369,1.05075669,59564.0,59563.0,0.001642]
[1726674911610,0.36721069,59564.0,59563.0,0.001642]
[1726674911841,0.70298369,59564.0,59563.0,0.001642]
[1726674912063,0.71598369,59564.0,59563.0,0.001642]
[1726674912277,0.70298369,59564.0,59563.0,0.001642]
[1726674912496,1.03875669,59564.0,59563.0,0.001642]
[1726674912933,1.03862709,59564.0,59563.0,0.001642]
[1726674913154,1.37440009,59564.0,59563.0,0.001642]
[1726674913814,1.38740009,59564.0,59563.0,0.001642]
[1726674914035,1.37440009,59564.0,59563.0,0.001642]
[1726674914506,1.05262709,59564.0,59563.0,0.001642]
[1726674914732,1.03862709,59564.0,59563.0,0.001642]
[1726674914953,0.71685409,59564.0,59563.0,0.001642]
[1726674915169,1.05262709,59564.0,59563.0,0.001642]
[1726674915391,1.03862709,59564.0,59563.0,0.001642]
[1726674915822,1.05262709,59564.0,59563.0,0.001642]
[1726674916263,1.03490291,59564.0,59563.0,0.001642]
[1726674916476,1.05257462,59564.0,59563.0,0.001642]
[1726674917141,1.03857462,59564.0,59563.0,0.001642]
[1726674917362,1.05157462,59564.0,59563.0,0.001642]
[1726674917794,1.03857462,59564.0,59563.0,0.001642]
[1726674918257,1.05157462,59564.0,59563.0,0.001642]
[1726674918474,1.03857462,59564.0,59563.0,0.001642]
[1726674918697,1.05157462,59564.0,59563.0,0.001642]
[1726674919127,1.03857462,59564.0,59563.0,0.001642]
[1726674920093,0.36702862,59564.0,59563.0,0.001642]
[1726674920362,0.03608895,59564.0,59563.0,0.001642]
[1726674920584,0.04908895,59564.0,59563.0,0.169531]
[1726674921024,0.03608895,59564.0,59563.0,0.169531]
[1726674921254,0.04808895,59564.0,59563.0,0.001642]
[1726674921476,0.20397495,59564.0,59563.0,0.001642]
[1726674921689,0.54394549,59564.0,59563.0,0.001642]
[1726674921909,0.22217249,59564.0,59563.0,0.001642]
[1726674922125,1.04277216,59564.0,59563.0,0.001642]
[1726674922371,1.03857462,59564.0,59563.0,0.001642]
[1726674922602,0.70780162,59564.0,59563.0,0.001642]
[1726674923738,0.70280162,59564.0,59563.0,0.001642]
[1726674924186,0.05008895,59564.0,59563.0,0.001642]
[1726674924402,0.03608895,59564.0,59563.0,0.169531]
[1726674924709,0.04608895,59564.0,59563.0,0.001642]
[1726674925205,0.03608895,59564.0,59563.0,0.169531]
[1726674925450,0.0292834,59564.0,59563.0,0.001642]
[1726674925678,0.03571297,59564.0,59563.0,0.001642]
[1726674926141,0.000821,59564.0,59563.0,0.001642]
[1726674926396,0.03999874,59564.0,59563.0,0.001642]
[1726674926643,0.20788474,59564.0,59563.0,0.001642]
[1726674926866,0.87943088,59564.0,59563.0,0.001642]
[1726674927090,0.55365788,59564.0,59563.0,0.001642]
[1726674927320,0.20368727,59564.0,59563.0,0.001642]
[1726674927548,0.20788488,59564.0,59563.0,0.001642]
[1726674927774,0.21068727,59564.0,59563.0,0.001642]
[1726674927961,0.20368727,59564.0,59563.0,0.001642]
[1726674928401,0.21688477,59564.0,59563.0,0.001642]
[1726674928640,0.20788477,59564.0,59563.0,0.001642]
[1726674928860,0.04380127,59564.0,59563.0,0.001642]
[1726674929090,0.04380127,59564.0,59563.0,0.169531]
[1726674929540,0.04380127,59564.0,59563.0,0.505309]
[1726674930196,0.03580127,59564.0,59563.0,0.932687]
[1726674930660,0.03580127,59564.0,59563.0,2.58897067]
[1726674930661,0.007821,59564.0,59563.0,2.58897067]
[1726674930933,0.000821,59565.0,59564.0,0.290886]
[1726674931155,0.000821,59565.0,59564.0,0.67758484]
[1726674931374,0.000721,59565.0,59564.0,1.03609567]
[1726674931833,0.000821,59578.0,59564.0,1.03609567]
[1726674931834,0.000721,59578.0,59577.0,0.41656477]
[1726674932072,0.03578714,59578.0,59577.0,0.49476477]
[1726674932293,0.000721,59578.0,59577.0,0.68081844]
[1726674932534,0.01830339,59578.0,59577.0,0.68081844]
[1726674932776,0.000721,59578.0,59577.0,0.73105195]
[1726674932997,0.000721,59578.0,59577.0,0.73105219]
[1726674933218,0.000721,59578.0,59577.0,0.68081844]
[1726674933683,0.000721,59578.0,59577.0,0.78081844]
[1726674934039,0.000521,59578.0,59577.0,1.5265316]
[1726674934259,0.000521,59578.0,59577.0,1.78791844]
[1726674934474,0.001521,59578.0,59577.0,2.02381444]
[1726674934667,0.001521,59578.0,59577.0,2.13061844]
[1726674934919,0.000521,59578.0,59577.0,2.48624244]
[1726674935162,0.001521,59578.0,59577.0,2.49324244]
[1726674935303,0.001521,59578.0,59577.0,2.56846822]
[1726674935502,0.000521,59578.0,59577.0,2.56146822]
[1726674936028,0.000521,59578.0,59577.0,2.52325022]
[1726674936267,0.000521,59578.0,59577.0,2.49814055]
[1726674936583,0.000521,59578.0,59577.0,2.17373455]
[1726674936796,0.001521,59578.0,59577.0,2.12361844]
[1726674937251,0.000521,59578.0,59577.0,2.12361844]
[1726674937467,0.001521,59578.0,59577.0,2.12361844]
[1726674937889,0.000521,59578.0,59577.0,2.12361844]
[1726674938116,0.001521,59578.0,59577.0,2.12361844]
[1726674940521,0.001521,59578.0,59577.0,1.96770367]
[1726674940733,0.001521,59578.0,59577.0,2.12361844]
[1726674942897,0.001521,59578.0,59577.0,2.13034244]
[1726674944229,0.001421,59578.0,59577.0,2.40404744]
[1726674944864,0.000371,59578.0,59577.0,2.40404744]
[1726674945102,0.000371,59578.0,59577.0,2.88739544]
[1726674945327,0.001371,59578.0,59577.0,2.13034244]
[1726674946619,0.000371,59578.0,59577.0,2.13034244]
[1726674946828,0.001371,59578.0,59577.0,2.13034244]
[1726674946966,0.001271,59578.0,59577.0,2.69769644]
[1726674947178,0.000271,59578.0,59577.0,2.69769644]
[1726674947384,0.001271,59578.0,59577.0,2.69769644]
[1726674947587,0.001271,59578.0,59577.0,2.68404644]
[1726674947783,0.001271,59578.0,59577.0,2.53143444]
[1726674947986,0.001271,59578.0,59577.0,2.13034244]
[1726674948198,0.000271,59578.0,59577.0,2.13034244]
[1726674948603,0.001271,59578.0,59577.0,2.13034244]
[1726674949886,0.000271,59578.0,59577.0,2.13034244]
[1726674950347,0.001271,59578.0,59577.0,2.13034244]
[1726674950537,0.000271,59578.0,59577.0,2.13034244]
[1726674950971,0.001271,59578.0,59577.0,2.13034244]
[1726674952429,0.001271,59578.0,59577.0,2.05214244]
[1726674953465,0.001271,59578.0,59577.0,1.43758877]
[1726674953672,0.001271,59578.0,59577.0,1.43086477]
[1726674956132,0.000271,59578.0,59577.0,1.43086477]
[1726674956559,0.001271,59578.0,59577.0,1.43086477]
[1726674956978,0.000271,59578.0,59577.0,1.43086477]
[1726674957167,0.001271,59578.0,59577.0,1.43086477]
[1726674957420,0.000271,59578.0,59577.0,1.43086477]
[1726674957868,0.001271,59578.0,59577.0,1.43086477]
[1726674959424,0.001271,59578.0,59577.0,1.43250477]
[1726674960061,0.001171,59578.0,59577.0,1.43250477]
[1726674960734,0.001171,59578.0,59577.0,1.62055844]
[1726674960945,0.001171,59578.0,59577.0,2.04825844]
[1726674961402,0.000821,59585.0,59584.0,1.51047]
[1726674961667,0.03587513,59585.0,59584.0,1.66638477]
[1726674961881,0.03587513,59585.0,59584.0,1.33072477]
[1726674963568,0.000721,59585.0,59584.0,1.33072477]
[1726674963780,0.03685646,59585.0,59584.0,1.34986844]
[1726674964201,0.03685646,59585.0,59584.0,1.33972477]
[1726674965540,0.03685646,59585.0,59584.0,0.84815]
[1726674966386,0.03685646,59585.0,59584.0,0.51249]
[1726674966608,0.001721,59585.0,59584.0,0.51249]
[1726674966824,0.03698446,59585.0,59584.0,0.17683]
[1726674967059,0.0451044,59585.0,59584.0,0.17683]
[1726674967706,0.0451044,59585.0,59584.0,0.009]
[1726674968161,0.2129314,59585.0,59584.0,0.009]
[1726674968390,0.6455854,59585.0,59584.0,0.009]
[1726674968839,0.3099314,59585.0,59584.0,0.009]
[1726674969048,0.1421044,59585.0,59584.0,0.009]
[1726674969359,0.1421044,59585.0,59583.0,0.167832]
[1726674969360,0.1411044,59585.0,59578.0,0.15591477]
[1726674969565,0.0451044,59585.0,59584.0,0.17483]
[1726674969796,0.00984094,59585.0,59584.0,0.17483]
[1726674970006,0.00884094,59585.0,59584.0,0.16783]
[1726674970218,0.04607164,59585.0,59584.0,0.16783]
[1726674970431,0.04607164,59585.0,59584.0,0.50349]
[1726674970640,0.04407164,59585.0,59584.0,0.50349]
[1726674971056,0.04407164,59585.0,59584.0,0.50549]
[1726674971279,0.04407164,59585.0,59584.0,0.002]
[1726674972140,0.54277931,59585.0,59584.0,0.002]
[1726674972354,0.30512531,59585.0,59577.0,0.00164]
[1726674972571,0.503541,59578.0,59577.0,0.00164]
[1726674972785,1.03751937,59578.0,59577.0,0.00164]
[1726674973021,1.13551937,59578.0,59577.0,0.00164]
[1726674973216,1.1434592,59578.0,59577.0,0.00164]
[1726674975643,1.1484592,59578.0,59577.0,0.00164]
[1726674975858,1.5241225,59578.0,59577.0,0.00164]
[1726674976077,1.55915062,59578.0,59577.0,0.00164]
[1726674977202,1.22345662,59578.0,59577.0,0.00164]
[1726674978745,0.12316795,59578.0,59577.0,0.00164]
[1726674978956,0.08813983,59578.0,59577.0,0.00164]
[1726674979175,0.12311418,59578.0,59577.0,0.00164]
[1726674980431,0.11811418,59578.0,59577.0,0.00164]
[1726674980661,0.12111418,59578.0,59577.0,0.00164]
[1726674981319,0.12111418,59578.0,59577.0,0.16949]
[1726674981524,0.12111418,59578.0,59577.0,0.50519]
[1726674981738,0.12111418,59578.0,59577.0,0.16949]
[1726674982610,0.11811418,59578.0,59577.0,0.50519]
[1726674982818,0.12111418,59578.0,59577.0,0.50519]
[1726674983491,0.04591418,59578.0,59577.0,0.50519]
[1726674983691,0.04591418,59578.0,59577.0,0.16949]
[1726674985284,0.04578096,59578.0,59577.0,0.16949]
[1726674985507,0.04578096,59578.0,59577.0,0.00164]
[1726674985728,0.54932196,59578.0,59577.0,0.00164]
[1726674985953,1.04806963,59578.0,59577.0,0.00164]
[1726674986169,0.47078163,59578.0,59577.0,0.00164]
[1726674986381,0.80647563,59578.0,59577.0,0.00164]
[1726674986597,0.80347563,59578.0,59577.0,0.00164]
[1726674987020,0.47078163,59578.0,59577.0,0.00164]
[1726674987468,0.69502252,59578.0,59577.0,0.00164]
[1726674988479,0.69479478,59578.0,59577.0,0.00164]
[1726674989117,0.35910078,59578.0,59577.0,0.00164]
[1726674989516,0.3418405,59578.0,59577.0,0.00164]
[1726674990718,0.01093983,59578.0,59577.0,0.16949]
[1726674990939,0.01093983,59578.0,59577.0,0.50519]
[1726674991145,0.003,59578.0,59577.0,0.16949]
[1726674991577,0.01074891,59578.0,59577.0,0.16949]
[1726674992429,0.00774891,59578.0,59577.0,0.16949]
[1726674992637,0.00974891,59578.0,59577.0,0.16949]
[1726674992851,0.002,59578.0,59577.0,0.00164]
[1726674993050,0.00974891,59578.0,59577.0,0.00164]
[1726674993265,0.002,59578.0,59577.0,0.00164]
[1726674993725,0.00974891,59578.0,59577.0,0.00164]
[1726674994726,0.00974891,59578.0,59577.0,1.17659]
[1726674994939,0.002,59578.0,59577.0,1.3727602]
[1726674995152,0.002,59578.0,59577.0,1.7084602]
[1726674995381,0.000721,59585.0,59584.0,1.17481]
[1726674995601,0.000621,59585.0,59584.0,1.33072477]
[1726674995869,0.000621,59585.0,59584.0,2.00266096]
[1726674996090,0.000621,59585.0,59584.0,2.04913844]
[1726674996311,0.000621,59585.0,59584.0,2.14958348]
[1726674996524,0.000621,59585.0,59584.0,2.45965948]
[1726674996738,0.000621,59585.0,59584.0,2.14958348]
[1726674997184,0.001621,59585.0,59584.0,2.13644779]
[1726674997412,0.000621,59585.0,59584.0,2.04913844]
[1726674997613,0.000621,59585.0,59584.0,2.14958348]
[1726674997843,0.000621,59585.0,59584.0,2.04913844]
[1726674998073,0.000621,59585.0,59584.0,2.05918579]
[1726674998605,0.000621,59585.0,59584.0,2.15963083]
[1726674998838,0.000621,59585.0,59584.0,1.43072477]
[1726674999279,0.001621,59585.0,59584.0,1.44372477]
[1726674999487,0.000621,59585.0,59584.0,1.43072477]
[1726674999706,0.000621,59585.0,59584.0,1.50602288]
[1726674999933,0.001621,59585.0,59584.0,1.52002288]
[1726675000132,0.001621,59585.0,59584.0,1.44472477]
[1726675000352,0.000621,59585.0,59584.0,1.48091634]
[1726675000556,0.001621,59585.0,59584.0,1.48891634]
[1726675000766,0.001621,59585.0,59584.0,1.43872477]
[1726675002699,0.000621,59585.0,59584.0,1.48091579]
[1726675002902,0.001621,59585.0,59584.0,1.49091579]
[1726675003338,0.001621,59585.0,59584.0,1.48091579]
[1726675003339,0.000621,59585.0,59584.0,1.48091579]
[1726675003539,0.001621,59585.0,59584.0,1.49091579]
[1726675003955,0.001621,59585.0,59584.0,1.48091579]
[1726675004789,0.001621,59585.0,59584.0,1.48090367]
[1726675005221,0.001621,59585.0,59584.0,1.49090367]
[1726675005441,0.002621,59585.0,59584.0,1.49090367]
[1726675005653,0.001621,59585.0,59584.0,1.48090367]
[1726675005876,0.002621,59585.0,59584.0,1.49090367]
[1726675006145,0.000621,59585.0,59584.0,1.43072477]
[1726675006560,0.001621,59585.0,59584.0,1.44072477]
[1726675006988,0.000621,59585.0,59584.0,1.43072477]
[1726675007196,0.001621,59585.0,59584.0,1.44072477]
[1726675007897,0.001621,59585.0,59584.0,0.94915]
[1726675008959,0.001621,59585.0,59584.0,0.84915]
[1726675009377,0.001621,59585.0,59584.0,0.51349]
[1726675009630,0.001621,59585.0,59584.0,0.01]
[1726675009863,0.001621,59585.0,59584.0,0.17783]
[1726675010075,0.00983668,59585.0,59584.0,0.01]
[1726675010314,0.001621,59585.0,59584.0,0.17783]
[1726675010538,0.10743811,59585.0,59584.0,0.17783]
[1726675010750,0.00973811,59585.0,59584.0,0.17783]
[1726675011396,0.00973811,59585.0,59584.0,0.01]
[1726675011622,0.17656511,59585.0,59581.0,0.167838]
[1726675011882,0.00873811,59585.0,59583.0,0.16783]
[1726675012135,0.00873811,59585.0,59583.0,0.167832]
[1726675012381,0.00873811,59585.0,59582.0,0.167835]
[1726675012640,0.00419589,59584.0,59582.0,0.167835]
[1726675012864,0.00873811,59585.0,59582.0,0.167835]
[1726675012865,0.01727634,59583.0,59582.0,0.503506]
[1726675013107,0.00807964,59583.0,59582.0,0.503506]
[1726675013323,0.000621,59585.0,59584.0,0.16783]
[1726675013545,0.02595669,59585.0,59584.0,0.16783]
[1726675013814,0.00868049,59585.0,59584.0,0.16783]
[1726675014043,0.02595221,59585.0,59584.0,0.16783]
[1726675014265,0.02595221,59585.0,59582.0,0.335671]
[1726675014266,0.04325473,59585.0,59583.0,0.167832]
[1726675014478,0.00868049,59585.0,59583.0,0.167832]
[1726675014680,0.01727174,59584.0,59583.0,0.503498]
[1726675015109,0.00806232,59584.0,59583.0,0.503498]
[1726675015316,0.02532795,59584.0,59583.0,0.503498]
[1726675015767,0.00806232,59584.0,59583.0,0.503498]
[1726675016215,0.00806232,59584.0,59583.0,0.504498]
[1726675016438,0.02532187,59584.0,59583.0,0.504498]
[1726675016645,0.02532187,59584.0,59583.0,0.168832]
[1726675016859,0.04262065,59584.0,59583.0,0.168832]
[1726675017549,0.04262065,59584.0,59583.0,0.001]
[1726675017550,0.5503065,59584.0,59583.0,0.001]
[1726675017776,0.51574817,59584.0,59583.0,0.001]
[1726675018195,0.94160817,59584.0,59583.0,0.001]
[1726675018413,0.27028817,59584.0,59583.0,0.001]
[1726675018832,0.27028817,59584.0,59579.0,0.167843]
[1726675018833,0.167834,59583.0,59579.0,0.167843]
[1726675019042,0.00801193,59582.0,59581.0,0.167838]
[1726675019463,0.167832,59584.0,59580.0,0.167841]
[1726675019663,0.00801103,59582.0,59579.0,0.15591477]
[1726675019883,0.009,59584.0,59580.0,0.16784]
[1726675020103,0.00801103,59581.0,59579.0,0.32375877]
[1726675020342,0.167833,59583.0,59579.0,0.32375877]
[1726675020804,0.00801103,59582.0,59579.0,0.32375877]
[1726675021260,0.00801103,59582.0,59580.0,0.16784]
[1726675021534,0.167838,59581.0,59577.0,0.169489]
[1726675021750,0.172836,59582.0,59579.0,0.167843]
[1726675021974,0.0253239,59581.0,59579.0,0.167843]
[1726675022220,0.01731287,59580.0,59579.0,0.167843]
[1726675022458,0.01731287,59580.0,59579.0,0.503531]
[1726675022691,0.01730219,59580.0,59579.0,0.83922]
[1726675022912,0.03461699,59580.0,59579.0,0.83922]
[1726675023122,0.0173148,59580.0,59579.0,0.83922]
[1726675023382,0.004,59581.0,59580.0,0.503524]
[1726675023658,0.004,59581.0,59580.0,1.17489]
[1726675024406,0.000621,59585.0,59584.0,0.83915]
[1726675024645,0.01797733,59585.0,59584.0,0.99506477]
[1726675024886,0.03532125,59585.0,59584.0,0.99506477]
[1726675025383,0.01796492,59585.0,59584.0,1.33072477]
[1726675025631,0.000621,59585.0,59584.0,1.33072477]
[1726675026053,0.000621,59585.0,59584.0,1.33172477]
[1726675026524,0.000621,59585.0,59584.0,1.33072477]
[1726675028290,0.01796961,59585.0,59584.0,1.33472477]
[1726675028504,0.01796932,59585.0,59584.0,1.33472477]
[1726675028722,0.01796952,59585.0,59584.0,1.33472477]
[1726675028943,0.01796952,59585.0,59584.0,1.33072477]
[1726675029158,0.000621,59585.0,59584.0,1.33572477]
[1726675029373,0.000621,59585.0,59584.0,1.33072477]
[1726675029791,0.001621,59585.0,59584.0,1.33672477]
[1726675030246,0.001621,59585.0,59584.0,1.33836477]
[1726675030456,0.03637794,59585.0,59584.0,1.33836477]
[1726675031543,0.01897463,59585.0,59584.0,0.84679]
[1726675031778,0.03638439,59585.0,59584.0,0.84679]
[1726675032429,0.03638439,59585.0,59584.0,1.00270477]
[1726675032666,0.03538439,59585.0,59584.0,1.33236477]
[1726675032930,0.03638439,59585.0,59584.0,1.33836477]
[1726675033829,0.01897463,59585.0,59584.0,1.33836477]
[1726675035153,0.03641664,59585.0,59584.0,1.33836477]
[1726675035357,0.01897463,59585.0,59584.0,1.33836477]
[1726675035784,0.03642349,59585.0,59584.0,1.33836477]
[1726675036001,0.01897463,59585.0,59584.0,1.33836477]